Cogmind - Beta 13 @@@ ROGUE MODE // 2024.04.07 @ 18:19:28 Player: triplej Result: Destroyed by as-30916 with Assembled F-torch Performance ------------- Evolutions (0) 0 Regions Visited (4) 800 Robots Destroyed (7) 35 Value Destroyed (82) 82 Prototype IDs (0) 0 Alien Tech Used (0) 0 Bonus (-111) -111 TOTAL SCORE: 806 Bonus ------- Friendly Fire -111 Cogmind --------- Core Integrity 0/250 Matter 300/300 Energy 98/100 System Corruption 8% Temperature Cool (20) Movement Core (50) Location -9/Mines Parts ------- > --- POWER (1) -------- (None) > --- PROPULSION (2) --- (None) > --- UTILITY (2) ------ (None) > --- WEAPON (2) ------- (None) > --- INVENTORY (5) ---- Light Ion Engine Aluminum Leg Aluminum Leg Compact Wheel Seismic Detector Peak State ------------ > --- POWER ------------ Light Ion Engine > --- PROPULSION ------- Aluminum Leg Aluminum Leg > --- UTILITY ---------- Small Storage Unit Improved Terrain Scanner > --- WEAPON ----------- Assault Rifle Assault Rifle > --- INVENTORY -------- Light Ion Engine Light Ion Engine Aluminum Leg Aluminum Leg Compact Wheel Improved Heat Sink Seismic Detector Small Laser [Rating: 10] Favorites ----------- Power Light Ion Engine Engine Light Ion Engine Propulsion Aluminum Leg Leg Aluminum Leg Utility Small Storage Unit Device Improved Terrain Scanner Storage Small Storage Unit Weapon Assault Rifle Ballistic Gun Assault Rifle Build | -11 -10 -10 -10 -9 ------- Run | Yrd Mat Min Exi Min Slots Evolved . | . . . . . Power . | . . . . . Propulsion . | . . . . . Utility . | . . . . . Weapon . | . . . . . Parts Attached 12 | 8 2 . 1 1 Power 2 | 1 . . 1 . Engine 2 | 1 . . 1 . Core . | . . . . . Reactor . | . . . . . Propulsion 4 | 2 2 . . . Treads . | . . . . . Leg 4 | 2 2 . . . Wheel . | . . . . . Hover . | . . . . . Flight . | . . . . . Utility 4 | 3 . . . 1 Device 3 | 2 . . . 1 Storage 1 | 1 . . . . Processor . | . . . . . Hackware . | . . . . . Protection . | . . . . . Artifact . | . . . . . Weapon 2 | 2 . . . . Energy Gun . | . . . . . Energy Cannon . | . . . . . Ballistic Gun 2 | 2 . . . . Ballistic Cannon . | . . . . . Launcher . | . . . . . Special Weapon . | . . . . . Impact Weapon . | . . . . . Slashing Weapon . | . . . . . Piercing Weapon . | . . . . . Special Melee Weapon . | . . . . . Unidentified Prototypes . | . . . . . Parts Lost 8 | . . . . 8 Power 1 | . . . . 1 Propulsion 2 | . . . . 2 Utility 3 | . . . . 3 Weapon 2 | . . . . 2 Highest Loss Streak 8 | . . . . 8 To Critical Strikes 2 | . . . . 2 Average Slot Usage (%) 99 | . 100 100 100 91 Engine 14 | . 14 14 14 14 Leg 27 | . 28 28 28 22 Device 13 | . 14 14 14 11 Storage 14 | . 14 14 14 14 Ballistic Gun 28 | . 28 28 28 28 Naked Turns 1 | . . . . 1 Heaviest Build 13 | 13 13 13 13 13 Greatest Support 20 | 20 20 20 20 20 Greatest Overweight (x) 4 | . . . . 4 Average Overweight (x) . | . . . . . Largest Inventory Capacity 8 | 8 8 8 8 8 Average Capacity 7 | 7 8 8 8 7 Most Carried 8 | 7 8 8 8 8 Average Carried 7 | 5 7 8 7 7 Final Capacity 8 | 8 8 8 8 5 Final Carried 8 | 7 8 8 8 5 Class Distribution -------------------- 100% | Mutant Dominant Class ---------------- Mutant | -10/Materials Mutant | -10/Mines Mutant | -10/Exiles Mutant | -9/Mines Resources | -11 -10 -10 -10 -9 ----------- Run | Yrd Mat Min Exi Min Matter Collected 412 | 283 83 . . 46 Remotely . | . . . . . Salvage Created 229 | 69 42 . . 118 Parts 26 | 12 4 . . 10 Haulers Intercepted . | . . . . . Recyclers Shooed . | . . . . . Parts Field Recycled . | . . . . . Retrieved Matter . | . . . . . Parts Self-Destructed . | . . . . . Prevented . | . . . . . Kills | -11 -10 -10 -10 -9 ------- Run | Yrd Mat Min Exi Min Combat Hostiles Destroyed 2 | . 1 . . 1 Guns 2 | . 1 . . 1 Classes Destroyed 4 | 1 1 . . 2 Tunneler 5 | 3 . . . 2 Grunt 1 | . 1 . . . Assembled 1 | . . . . 1 Guerrilla 1 | . . . . 1 Best Kill Streak 3 | 2 1 . . 3 Combat Bots Only 1 | . 1 . . 1 Max Kills in Single Turn 2 | 1 1 . . 2 Gunslinging . | . . . . . Exploded . | . . . . . Melee . | . . . . . Uniques/NPCs Destroyed . | . . . . . Combat | -11 -10 -10 -10 -9 -------- Run | Yrd Mat Min Exi Min Hostile Shots Fired 75 | . 8 . . 67 Missed 16 | . 3 . . 13 Damage Taken 884 | . 79 . . 805 Core 254 | . . . . 254 Absorbed by Shields . | . . . . . Core Remaining (%) 100 | 100 . . . . Volleys Fired 20 | 6 8 . 1 5 Largest 2 | 2 2 . 2 2 Hottest 40 | 40 40 . 40 40 Shots Fired 40 | 12 16 . 2 10 Gun 40 | 12 16 . 2 10 Cannon . | . . . . . Launcher . | . . . . . Special . | . . . . . Kinetic 40 | 12 16 . 2 10 Thermal . | . . . . . Explosive . | . . . . . Electromagnetic . | . . . . . Robot Hit Streak 6 | 4 6 . . 2 Robot Miss Streak 3 | 2 2 . . 3 Penetration Max . | . . . . . Secondary Targets 3 | . . . . 3 Max Gunslinging Chain 1 | . . . . 1 Shots Hit Robots 22 | 7 11 . . 4 Core Hits 13 | 3 4 . . 6 Critical Kills . | . . . . . Critical Parts Destroyed . | . . . . . Critical Strikes . | . . . . . Melee Attacks . | . . . . . Impact . | . . . . . Slashing . | . . . . . Piercing . | . . . . . Sneak Attacks . | . . . . . Combat Hostiles . | . . . . . Follow-up Attacks . | . . . . . Damage Inflicted 323 | 84 153 . . 86 Guns 323 | 84 153 . . 86 Cannons . | . . . . . Explosions . | . . . . . Melee . | . . . . . Ramming . | . . . . . Kinetic 323 | 84 153 . . 86 Thermal . | . . . . . Explosive . | . . . . . Electromagnetic . | . . . . . Impact . | . . . . . Slashing . | . . . . . Piercing . | . . . . . Highest Corruption 8 | . . . . 8 Average Corruption 3 | . . . . 3 Corruption Purged . | . . . . . Corruption Blocked . | . . . . . Effects 1 | . . . . 1 Message Errors 1 | . . . . 1 Overload Shots . | . . . . . Overflow Damage . | . . . . . Projectiles . | . . . . . Explosions . | . . . . . Melee . | . . . . . Knockbacks . | . . . . . Impact . | . . . . . Kinetic . | . . . . . Secondary . | . . . . . Self-Inflicted Damage . | . . . . . Shots . | . . . . . Rammed . | . . . . . Targets Rammed . | . . . . . Kicked . | . . . . . Crushed . | . . . . . Highest Temperature 28 | . 2 . . 28 Average Temperature 8 | . 2 . . 11 Received Heat Transfer 362 | . 42 . . 320 Siege Activations . | . . . . . Robots Corrupted . | . . . . . Combat Hostiles . | . . . . . Parts Fried . | . . . . . Impact Corruptions . | . . . . . Robots Melted . | . . . . . Combat Hostiles . | . . . . . Parts Melted . | . . . . . Heat Transferred . | . . . . . Parts Sabotaged . | . . . . . Parts Stolen . | . . . . . Parts Stripped . | . . . . . Power Chain Reactions . | . . . . . Alert | -11 -10 -10 -10 -9 ------- Run | Yrd Mat Min Exi Min Peak Influence 54 | 15 54 21 . 10 Initial 21 | . 9 21 . . Average 16 | 4 21 21 . 2 Maximum Alert Level . | . . . . . Low Security (%) 100 | 100 100 100 . 100 Level 1 . | . . . . . Level 2 . | . . . . . Level 3 . | . . . . . Level 4 . | . . . . . Level 5 . | . . . . . High Security . | . . . . . Max Security . | . . . . . Squads Dispatched . | . . . . . Investigation . | . . . . . Extermination . | . . . . . Reinforcement . | . . . . . Assault . | . . . . . Garrison . | . . . . . Intercept . | . . . . . Searches Triggered . | . . . . . Construction Impeded . | . . . . . Haulers Reinforced . | . . . . . Active Scanning Responses . | . . . . . Cargo Convoy Interrupts . | . . . . . Stealth | -11 -10 -10 -10 -9 --------- Run | Yrd Mat Min Exi Min Distress Signals . | . . . . . Communications Jammed . | . . . . . Distress Signals . | . . . . . Times Spotted 16 | . 3 . . 13 Peak Tracking Total 12 | . 2 . . 12 Tactical Retreats 1 | . . . . 1 Traps | -11 -10 -10 -10 -9 ------- Run | Yrd Mat Min Exi Min Traps Triggered . | . . . . . Indirectly . | . . . . . Trap Hack Attempts . | . . . . . Triggered . | . . . . . Disarmed . | . . . . . Reprogrammed . | . . . . . Reused . | . . . . . Traps Extracted . | . . . . . Installed . | . . . . . Triggered . | . . . . . Machines | -11 -10 -10 -10 -9 ---------- Run | Yrd Mat Min Exi Min Machines Disabled . | . . . . . Max in Single Turn . | . . . . . Machines Repaired . | . . . . . Machines Dismantled . | . . . . . Machines Sabotaged . | . . . . . Overloaded Fab Kills . | . . . . . Hacking | -11 -10 -10 -10 -9 --------- Run | Yrd Mat Min Exi Min Machines Accessed . | . . . . . Terminals . | . . . . . Fabricators . | . . . . . Repair Stations . | . . . . . Recycling Units . | . . . . . Scanalyzers . | . . . . . Garrison Access . | . . . . . Total Hacks . | . . . . . Successful . | . . . . . Failed . | . . . . . Catastrophic . | . . . . . Database Lockouts . | . . . . . Manual . | . . . . . Terminals . | . . . . . Fabricators . | . . . . . Repair Stations . | . . . . . Recycling Units . | . . . . . Scanalyzers . | . . . . . Garrison Access . | . . . . . Terminal Hacks . | . . . . . Fabricator Hacks . | . . . . . Repair Station Hacks . | . . . . . Recycling Unit Hacks . | . . . . . Scanalyzer . | . . . . . Garrison Access Hacks . | . . . . . Unauthorized Hacks . | . . . . . Terminals . | . . . . . Fabricators . | . . . . . Repair Stations . | . . . . . Recycling Units . | . . . . . Scanalyzers . | . . . . . Garrison Access . | . . . . . Data Cores Recovered . | . . . . . Used . | . . . . . Hacking Detections . | . . . . . Full Trace Events . | . . . . . Feedback Events . | . . . . . Feedback Blocked . | . . . . . Robot Schematics Acquired . | . . . . . Robots Built . | . . . . . Authchips . | . . . . . Time . | . . . . . Total Robot Build Rating . | . . . . . Part Schematics Acquired . | . . . . . Parts Built . | . . . . . Authchips . | . . . . . Time . | . . . . . Total Part Build Rating . | . . . . . Parts Repaired . | . . . . . Time . | . . . . . Parts Recycled . | . . . . . Recycled Matter . | . . . . . Retrieved Matter . | . . . . . Retrieved Components . | . . . . . Parts Scanalyzed . | . . . . . Part Schematics Acquired . | . . . . . Parts Damaged . | . . . . . Bothacking | -11 -10 -10 -10 -9 ------------ Run | Yrd Mat Min Exi Min Used RIF Installer . | . . . . . Robots Hacked . | . . . . . Non-combat . | . . . . . Combat . | . . . . . Robot Hacks Applied . | . . . . . Relay Couplers Released . | . . . . . Fabnet Peak Effective % . | . . . . . Robots Rewired . | . . . . . Allies Hacked . | . . . . . Hacks Repelled . | . . . . . Allies | -11 -10 -10 -10 -9 -------- Run | Yrd Mat Min Exi Min Total Allies . | . . . . . Largest Group . | . . . . . Highest-Rated Group . | . . . . . Highest-Rated Ally . | . . . . . Total Orders . | . . . . . Ally Attacks . | . . . . . Total Damage . | . . . . . Kills . | . . . . . Allies Corrupted . | . . . . . Allies Melted . | . . . . . Intel | -11 -10 -10 -10 -9 ------- Run | Yrd Mat Min Exi Min Robot Analysis Total . | . . . . . Derelict Logs Recovered . | . . . . . Drone Launches . | . . . . . Drone Recoveries . | . . . . . Exploration | -11 -10 -10 -10 -9 ------------- Run | Yrd Mat Min Exi Min Turns Passed 918 | 135 226 234 270 53 Spaces Moved 684 | 87 160 191 218 28 Core 13 | 8 . . . 5 Treads . | . . . . . Legs 671 | 79 160 191 218 23 Wheels . | . . . . . Hover . | . . . . . Flight . | . . . . . Fastest Speed 50 | 50 120 120 120 50 Average Speed 119 | 113 120 120 120 118 Slowest Speed 250 | 120 120 120 120 250 Overloaded Moves . | . . . . . Propulsion Burnouts . | . . . . . Robots Hopped . | . . . . . Cave-ins Triggered . | . . . . . Exploration Rate (%) 21 | 4 23 33 41 5 Regions Visited 4 Branch Regions 3 Pre-discovered Areas . | . . . . . Known Exits Taken . | . . . . . Unknown Exits Taken 4 | 1 1 1 1 . Scrap Searched . | . . . . . Spaces Dug . | . . . . . Terrain Destroyed . | . . . . . Melee . | . . . . . Projectile . | . . . . . AOE . | . . . . . Terrain Rammed . | . . . . . Walls Destroyed . | . . . . . Machines Disabled . | . . . . . Actions | -11 -10 -10 -10 -9 --------- Run | Yrd Mat Min Exi Min Total 745 | 107 178 196 226 38 Wait 14 | . 4 6 . 4 Move 680 | 86 159 190 217 28 Hop . | . . . . . Pick Up 12 | 7 2 . 3 . Fast Attach 8 | 7 . . 1 . Attach 1 | . . . . 1 Detach . | . . . . . Swap 3 | 1 2 . . . Drop 7 | . 3 . 4 . Fire 20 | 6 8 . 1 5 Melee . | . . . . . Ram . | . . . . . Kick . | . . . . . Crush . | . . . . . Escape Stasis . | . . . . . Rewire . | . . . . . Trap . | . . . . . Miscellaneous . | . . . . . Route ------- -11/Scrapyard -10/Materials -10/Mines -10/Exiles -9/Mines History --------- Turn | Location | Event 10 | -11/Scrapyard | Discovered new exit (range 15) 136 | -11/Scrapyard | Entered Materials 329 | -10/Materials | Build established: Mutant 341 | -10/Materials | Discovered new exit (range 15) 362 | -10/Materials | Entered Mines 590 | -10/Mines | Deemed a non-threat by the Exiles lab entrance 590 | -10/Mines | Discovered new exit (range 5) 596 | -10/Mines | Entered Exiles 638 | -10/Exiles | Met 8R-AWN 656 | -10/Exiles | Met EX-HEX 695 | -10/Exiles | Met EX-BIN 853 | -10/Exiles | Discovered new exit (range 14) 866 | -10/Exiles | Entered Mines 867 | -9/Mines | Assembled infested the area 872 | -9/Mines | Assisted by a Guerilla fighting off Assembled 917 | -9/Mines | Core integrity fell below 50% 919 | -9/Mines | Core integrity fell below 20% 919 | -9/Mines | Destroyed by as-30916 with Assembled F-torch Last Messages --------------- 00890_ Acquired 46 matter. 00894_ Knocked back. 00897_ as-08521 destroyed. 00897_ Switching to secondary target: as-28892. 00899_ Imp. Terrain Scanner destroyed. 00899_ System corrupted by crushing effect (+2). 00899_ Knocked back. 00901_ Critical hit (Burn: +80). 00906_ Critical hit (Destroy). 00906_ Aluminum Leg destroyed. 00909_ Critical hit (Destroy). 00909_ Aluminum Leg destroyed. 00910_ Assault Rifle destroyed. 00911_ System corrupted by crushing effect (+3). 00913_ Imp. Heat Sink destroyed. 00915_ Lgt. Ion Engine destroyed. 00917_ W,XFIJ%WDM=RU%6RZJ/56J8OPEUJICXGRS: 00917_ as-24284 destroyed. 00918_ Sml. Storage Unit destroyed. 00918_ System corrupted by crushing effect (+3). Map ----- +----------------------------------------------------+ | | | | | | | | | | | | | | | | | | | | | | | | | | | | | ??????????????#??????????????#???????????????????? | | ?????????????????????????????????????????????????? | | ?????????????????????????????????????????????????? | | ?????????????????????????????????????#???????????? | | ????????????????#?????##?????????????????????????? | | ???????????# #######"####???????????#?????????? | | ??????????? % %%=!#?????????????????????? | | ???????????" % %=#?####????????????????? | | ??????????????????########!### ##???????????????? | | ?????????????????#???????#%## ##??????????????? | | ????????????????????????##=a! ##?????????????? | | ????????????????????????#@aa #?????????????? | | ???????????????????#?#??# #?????????????? | | ????????????????????????#%a aa #???????? ????? | | ????????????????????????#aa ## ##?????????????? | | ??????????????#?????????## #######??????????????? | | ?????????????????????????####????????????????????? | | ?????????????????????????????????????????????????? | | ?????????????????????????#???????????????????????? | | ?????????????????????????????????????????????????? | | ?????????????????????????????????????????????????? | | ???????????????????????#?????????????????????????? | | ?????????????????????????????????????????????????? | | ?????????????????????????????????????????????????? | | ?????????????????????????????????????????????????? | | ?????????????????????????????????????????????????? | | ?????????????????????????????????????????????????? | | ?????????????????????????????????????????????????? | | ?????????????????????????????????????????????????? | | ?????????????????????????????????????????????????? | | ?????????????????????????????????????????????????? | | ?????????????????????????????????????????????????? | | ?????????????????????????????????????????????????? | | ?????????????????????????????????????????????????? | | ?????????????????????????????????????????????????? | | ?????????????????????????????????????????????????? | +----------------------------------------------------+ Best States ------------- Heat Dissipation 39 Energy Generation 10 Energy Capacity 125 Matter Stores 300 Matter Capacity 300 Sight Range 16 Terrain Scan Range 16 Terrain Scan Density 10 Evasion (%) 55 Item Schematics ----------------- None Robot Schematics ------------------ None Fabricated ------------ Nothing Alien Tech Used ----------------- None Achievements -------------- Backstab Challenges ------------ None Game ------ Seed InsulationFrostBlaster Manual? 0 Play Time 00:11:46 Cumulative 7.5 hours Start 2024.04.07 @ 16:27:42 End 2024.04.07 @ 18:19:28 Sessions 5 Manual Loads 0 Difficulty Rogue Special Mode None Game No. 15 Rogue 10 Adventurer 5 Explorer 0 Win Type - Total 0 Types 0/0/0/0/0/0/0/0/0 Lore% 2 Gallery% 17 Achievement% 14 Wizard Run 0 Options --------- Layout 1 ASCII 0 Keyboard 0 Movement Mouse Keybinds 0 Fullscreen 2 Font 32/Dina Map View 50x35 Zoom Use 0% Tactical HUD 1 Map Filters NONE Filters NONE Steam 1 RUN: d4507742-04fb-4498-8eaa-c349ca5d4854